[Event "Live Chess"]
[Site "Chess.com"]
[Date "2024.06.01"]
[Round "-"]
[White "IgorSchukin"]
[Black "FlyingChessKestrel13"]
[Result "1-0"]
[WhiteElo "1688"]
[BlackElo "2062"]
[TimeControl "300"]
[EndTime "14:28:08 PDT"]
[Termination "IgorSchukin won by resignation"]

1. e4 {[%clk 0:04:55.1]} 1... e5 {[%clk 0:04:58.9]} 2. Nf3 {[%clk 0:04:53.4]}
2... Nf6 {[%clk 0:04:58.5]} 3. Nc3 {[%clk 0:04:52.4]} 3... Bb4 {[%clk
0:04:56.5]} 4. Nxe5 {[%clk 0:04:50.4]} 4... O-O {[%clk 0:04:52.2]} 5. Nd3 {[%clk
0:04:48.9]} 5... Bxc3 {[%clk 0:04:50.2]} 6. dxc3 {[%clk 0:04:47.6]} 6... Nxe4
{[%clk 0:04:49.7]} 7. Be2 {[%clk 0:04:46.4]} 7... d5 {[%clk 0:04:48.2]} 8. O-O
{[%clk 0:04:44.7]} 8... c6 {[%clk 0:04:47.9]} 9. Bf3 {[%clk 0:04:38.3]} 9... Nd7
{[%clk 0:04:46.1]} 10. Re1 {[%clk 0:04:35.2]} 10... Ndf6 {[%clk 0:04:44.7]} 11.
Bxe4 {[%clk 0:04:31]} 11... Nxe4 {[%clk 0:04:42.1]} 12. h3 {[%clk 0:04:28.8]}
12... Bf5 {[%clk 0:04:37.7]} 13. Bf4 {[%clk 0:04:25.3]} 13... c5 {[%clk
0:04:32.9]} 14. f3 {[%clk 0:04:19.3]} 14... Nf6 {[%clk 0:04:31.2]} 15. Nxc5
{[%clk 0:04:13.8]} 15... Qb6 {[%clk 0:04:30.2]} 16. b4 {[%clk 0:04:05.3]} 16...
Rac8 {[%clk 0:04:20.8]} 17. Kh2 {[%clk 0:03:59.8]} 17... a5 {[%clk 0:04:15.9]}
18. a3 {[%clk 0:03:57.6]} 18... Rfd8 {[%clk 0:04:13.7]} 19. Qd4 {[%clk
0:03:54.4]} 19... Nh5 {[%clk 0:04:03.4]} 20. Rac1 {[%clk 0:03:33.7]} 20... Nxf4
{[%clk 0:03:59]} 21. Qxf4 {[%clk 0:03:31.8]} 21... Bg6 {[%clk 0:03:58]} 22. Re7
{[%clk 0:03:22]} 22... Qc6 {[%clk 0:03:38.6]} 23. Rxb7 {[%clk 0:03:06.2]} 23...
axb4 {[%clk 0:03:32.7]} 24. axb4 {[%clk 0:02:55.7]} 24... h6 {[%clk 0:03:26.1]}
25. Re1 {[%clk 0:02:35.5]} 25... Re8 {[%clk 0:03:18.8]} 26. Rxe8+ {[%clk
0:02:30.2]} 26... Rxe8 {[%clk 0:03:17.8]} 27. Rb8 {[%clk 0:02:26.6]} 27... Kh7
{[%clk 0:03:14.4]} 28. Rxe8 {[%clk 0:02:23.9]} 28... Qxe8 {[%clk 0:03:14.3]} 29.
Qd4 {[%clk 0:02:05.3]} 29... Qc6 {[%clk 0:03:12.2]} 30. Nd3 {[%clk 0:01:48.8]}
30... Qa4 {[%clk 0:03:02.1]} 31. Qxd5 {[%clk 0:01:33.9]} 31... Qxc2 {[%clk
0:03:00.7]} 32. Nf4 {[%clk 0:01:24.4]} 32... Qxc3 {[%clk 0:02:56.3]} 33. Nxg6
{[%clk 0:01:22.5]} 33... fxg6 {[%clk 0:02:55.5]} 34. b5 {[%clk 0:01:20.1]} 34...
Qc7+ {[%clk 0:02:53.8]} 35. Kg1 {[%clk 0:01:16.9]} 35... Qc1+ {[%clk 0:02:53]}
36. Kf2 {[%clk 0:01:15]} 36... Qb2+ {[%clk 0:02:52.4]} 37. Kg3 {[%clk
0:01:13.2]} 37... h5 {[%clk 0:02:48.1]} 38. h4 {[%clk 0:01:10.5]} 38... Qf6
{[%clk 0:02:38.5]} 39. Qc5 {[%clk 0:01:01.8]} 39... Qd8 {[%clk 0:02:32.1]} 40.
b6 {[%clk 0:00:58.3]} 40... Qb8+ {[%clk 0:02:30.9]} 41. Qc7 {[%clk 0:00:55.6]}
1-0

[Event "Live Chess"]
[Site "Chess.com"]
[Date "2024.06.01"]
[Round "-"]
[White "LL220284LL"]
[Black "lateforthesky"]
[Result "1-0"]
[WhiteElo "2543"]
[BlackElo "2152"]
[TimeControl "300"]
[EndTime "14:28:16 PDT"]
[Termination "LL220284LL won by checkmate"]

1. d4 {[%clk 0:04:57.8]} 1... Nf6 {[%clk 0:04:55.3]} 2. Bg5 {[%clk 0:04:53]}
2... d5 {[%clk 0:04:52.6]} 3. Nf3 {[%clk 0:04:51.8]} 3... Nbd7 {[%clk
0:04:50.1]} 4. Nbd2 {[%clk 0:04:51.2]} 4... g6 {[%clk 0:04:47.6]} 5. e3 {[%clk
0:04:50.6]} 5... Bg7 {[%clk 0:04:46.8]} 6. Bd3 {[%clk 0:04:49.5]} 6... c5 {[%clk
0:04:40.8]} 7. c3 {[%clk 0:04:48.4]} 7... b6 {[%clk 0:04:38.2]} 8. O-O {[%clk
0:04:45.6]} 8... O-O {[%clk 0:04:36.5]} 9. Re1 {[%clk 0:04:42.9]} 9... Re8
{[%clk 0:04:28.6]} 10. Qc2 {[%clk 0:04:40.4]} 10... e5 {[%clk 0:04:22.4]} 11.
dxe5 {[%clk 0:04:39]} 11... Nxe5 {[%clk 0:04:21.2]} 12. Nxe5 {[%clk 0:04:38.9]}
12... Rxe5 {[%clk 0:04:20]} 13. Bf4 {[%clk 0:04:37.7]} 13... Re8 {[%clk
0:04:17.3]} 14. e4 {[%clk 0:04:35.9]} 14... Nh5 {[%clk 0:04:08.4]} 15. Bg3
{[%clk 0:04:28.6]} 15... Nxg3 {[%clk 0:04:06]} 16. hxg3 {[%clk 0:04:28.5]} 16...
Bb7 {[%clk 0:04:03.8]} 17. exd5 {[%clk 0:04:11]} 17... Bxd5 {[%clk 0:03:58.9]}
18. Nf3 {[%clk 0:04:06.3]} 18... Qd7 {[%clk 0:03:51.7]} 19. a4 {[%clk
0:04:01.3]} 19... Qc6 {[%clk 0:03:43.4]} 20. Bb5 {[%clk 0:03:58.8]} 20... Rxe1+
{[%clk 0:03:27.4]} 21. Rxe1 {[%clk 0:03:55.9]} 21... Qc7 {[%clk 0:03:26]} 22.
Qd2 {[%clk 0:03:49.7]} 22... Rd8 {[%clk 0:03:12]} 23. Qg5 {[%clk 0:03:48.1]}
23... h6 {[%clk 0:03:06]} 24. Qe7 {[%clk 0:03:43.2]} 24... Qxe7 {[%clk
0:02:55.3]} 25. Rxe7 {[%clk 0:03:43.1]} 25... Bxf3 {[%clk 0:02:33.3]} 26. gxf3
{[%clk 0:03:41.4]} 26... Rd2 {[%clk 0:02:32.8]} 27. Bc4 {[%clk 0:03:38]} 27...
Rxb2 {[%clk 0:02:30.2]} 28. Rxf7 {[%clk 0:03:36.8]} 28... Kh7 {[%clk 0:02:29]}
29. Rxa7 {[%clk 0:03:31.6]} 29... Rc2 {[%clk 0:02:27.9]} 30. Bd5 {[%clk
0:03:26.6]} 30... Rxc3 {[%clk 0:02:21.7]} 31. Rb7 {[%clk 0:03:25.5]} 31... Rc1+
{[%clk 0:02:18.1]} 32. Kg2 {[%clk 0:03:22.9]} 32... Ra1 {[%clk 0:02:13.1]} 33.
Rxb6 {[%clk 0:03:19.4]} 33... Rxa4 {[%clk 0:02:11]} 34. Be4 {[%clk 0:03:18.5]}
34... Bd4 {[%clk 0:02:04.7]} 35. Rxg6 {[%clk 0:03:15.5]} 35... Ra1 {[%clk
0:01:56.6]} 36. Bf5 {[%clk 0:03:01.2]} 36... h5 {[%clk 0:01:51.4]} 37. f4 {[%clk
0:02:54.7]} 37... Kh8 {[%clk 0:01:47.1]} 38. Rh6+ {[%clk 0:02:45.5]} 38... Kg7
{[%clk 0:01:44.5]} 39. Rxh5 {[%clk 0:02:44.2]} 39... Ra2 {[%clk 0:01:41]} 40.
Kh3 {[%clk 0:02:42.6]} 40... Rxf2 {[%clk 0:01:38.9]} 41. Kg4 {[%clk 0:02:40.9]}
41... c4 {[%clk 0:01:32]} 42. Rh7+ {[%clk 0:02:38.6]} 42... Kf6 {[%clk
0:01:28.5]} 43. Rh6+ {[%clk 0:02:36]} 43... Kg7 {[%clk 0:01:26.6]} 44. Rc6
{[%clk 0:02:35.1]} 44... c3 {[%clk 0:01:25.1]} 45. Kg5 {[%clk 0:02:32.6]} 45...
Rg2 {[%clk 0:01:12.2]} 46. g4 {[%clk 0:02:30.5]} 46... Rf2 {[%clk 0:01:09.7]}
47. Rc7+ {[%clk 0:02:28.3]} 47... Kf8 {[%clk 0:01:08.1]} 48. Rc4 {[%clk
0:02:18.5]} 48... Be3 {[%clk 0:00:55]} 49. Kf6 {[%clk 0:02:17]} 49... Ke8 {[%clk
0:00:48.4]} 50. Rc8# {[%clk 0:02:15.5]} 1-0

[Event "Live Chess"]
[Site "Chess.com"]
[Date "2024.06.01"]
[Round "-"]
[White "DylanMeyer1"]
[Black "oscalik"]
[Result "0-1"]
[WhiteElo "1710"]
[BlackElo "2328"]
[TimeControl "300"]
[EndTime "14:28:27 PDT"]
[Termination "oscalik won by resignation"]

1. c4 {[%clk 0:04:59.2]} 1... Nf6 {[%clk 0:04:58.1]} 2. Nc3 {[%clk 0:04:58.7]}
2... c5 {[%clk 0:04:56.9]} 3. g3 {[%clk 0:04:58]} 3... d5 {[%clk 0:04:55.6]} 4.
cxd5 {[%clk 0:04:56.5]} 4... Nxd5 {[%clk 0:04:55.5]} 5. Bg2 {[%clk 0:04:55.3]}
5... Nc7 {[%clk 0:04:55.1]} 6. e3 {[%clk 0:04:52.8]} 6... Nc6 {[%clk 0:04:54.2]}
7. Nge2 {[%clk 0:04:52.4]} 7... e5 {[%clk 0:04:52.5]} 8. O-O {[%clk 0:04:48.3]}
8... Be7 {[%clk 0:04:51.6]} 9. a3 {[%clk 0:04:46.6]} 9... O-O {[%clk 0:04:50.3]}
10. b3 {[%clk 0:04:43.3]} 10... Bf5 {[%clk 0:04:43.9]} 11. e4 {[%clk 0:04:41.1]}
11... Be6 {[%clk 0:04:42.5]} 12. Bb2 {[%clk 0:04:41]} 12... Qd7 {[%clk
0:04:39.2]} 13. Kh1 {[%clk 0:04:32.6]} 13... Rad8 {[%clk 0:04:37.4]} 14. Bc1
{[%clk 0:04:28.5]} 14... Bh3 {[%clk 0:04:34.9]} 15. Ng1 {[%clk 0:04:27.2]} 15...
Bxg2+ {[%clk 0:04:33.1]} 16. Kxg2 {[%clk 0:04:27.1]} 16... Nd4 {[%clk
0:04:30.4]} 17. Nf3 {[%clk 0:04:19.2]} 17... f6 {[%clk 0:04:22]} 18. Ne2 {[%clk
0:04:14.4]} 18... Nxf3 {[%clk 0:04:19.8]} 19. Kxf3 {[%clk 0:04:13.2]} 19... Qd3+
{[%clk 0:04:19.4]} 20. Kg2 {[%clk 0:04:11.2]} 20... Qxe4+ {[%clk 0:04:19]} 21.
f3 {[%clk 0:04:09.8]} 21... Qc6 {[%clk 0:04:06.6]} 22. Bb2 {[%clk 0:04:01]}
22... Rd3 {[%clk 0:04:02.7]} 23. Bc3 {[%clk 0:03:59.3]} 23... Rfd8 {[%clk
0:04:01.1]} 24. Nc1 {[%clk 0:03:58.1]} 24... Rxc3 {[%clk 0:03:59]} 25. Na2
{[%clk 0:03:54.3]} 25... Rcd3 {[%clk 0:03:57.1]} 26. Rf2 {[%clk 0:03:52.1]}
26... Ne6 {[%clk 0:03:54.4]} 27. Rc1 {[%clk 0:03:50.9]} 27... Ng5 {[%clk
0:03:47.7]} 28. Rc3 {[%clk 0:03:42.8]} 28... e4 {[%clk 0:03:36.6]} 29. Rxd3
{[%clk 0:03:23.9]} 29... Rxd3 {[%clk 0:03:36.5]} 30. h4 {[%clk 0:03:15.5]} 30...
Nxf3 {[%clk 0:03:30]} 31. Nc1 {[%clk 0:03:04.3]} 31... Rxd2 {[%clk 0:03:09.1]}
32. Rxd2 {[%clk 0:03:00.5]} 32... Nxd2 {[%clk 0:03:07.8]} 33. Ne2 {[%clk
0:02:47.8]} 33... e3+ {[%clk 0:03:05.6]} 34. Kh2 {[%clk 0:02:46.5]} 34... Nf3+
{[%clk 0:03:03.4]} 35. Kh3 {[%clk 0:02:45.6]} 35... Qe6+ {[%clk 0:03:00.9]} 36.
g4 {[%clk 0:02:44.5]} 36... Qe5 {[%clk 0:02:39.2]} 37. Ng3 {[%clk 0:02:07.4]}
37... e2 {[%clk 0:02:30.8]} 38. Qd3 {[%clk 0:01:55.1]} 38... Ng1+ {[%clk
0:02:15.3]} 39. Kh2 {[%clk 0:01:19.3]} 39... e1=Q {[%clk 0:02:15.2]} 40. Qc2
{[%clk 0:01:02.8]} 0-1

[Event "Live Chess"]
[Site "Chess.com"]
[Date "2024.06.01"]
[Round "-"]
[White "AndrewBak1"]
[Black "CCGoodKnightRookie"]
[Result "0-1"]
[WhiteElo "1869"]
[BlackElo "2365"]
[TimeControl "300"]
[EndTime "14:28:32 PDT"]
[Termination "CCGoodKnightRookie won by resignation"]

1. e4 {[%clk 0:04:54.9]} 1... Nf6 {[%clk 0:04:59.2]} 2. Nc3 {[%clk 0:04:53.3]}
2... e5 {[%clk 0:04:58.4]} 3. Nf3 {[%clk 0:04:51.1]} 3... Nc6 {[%clk 0:04:57.5]}
4. Bb5 {[%clk 0:04:46]} 4... Bb4 {[%clk 0:04:56.7]} 5. d3 {[%clk 0:04:40.7]}
5... d6 {[%clk 0:04:53.6]} 6. O-O {[%clk 0:04:39.2]} 6... O-O {[%clk 0:04:52.4]}
7. Bg5 {[%clk 0:04:34.3]} 7... Bxc3 {[%clk 0:04:51.9]} 8. bxc3 {[%clk
0:04:33.2]} 8... Ne7 {[%clk 0:04:51.8]} 9. Bxf6 {[%clk 0:04:31.6]} 9... gxf6
{[%clk 0:04:51.7]} 10. h3 {[%clk 0:04:29]} 10... Ng6 {[%clk 0:04:50.5]} 11. d4
{[%clk 0:04:22.6]} 11... Nf4 {[%clk 0:04:48.1]} 12. Kh2 {[%clk 0:04:19.1]} 12...
Kh8 {[%clk 0:04:46.3]} 13. Ng1 {[%clk 0:04:13.2]} 13... f5 {[%clk 0:04:39]} 14.
g3 {[%clk 0:04:03.4]} 14... Ng6 {[%clk 0:04:36.7]} 15. exf5 {[%clk 0:03:59]}
15... Bxf5 {[%clk 0:04:34.3]} 16. Bd3 {[%clk 0:03:15.9]} 16... e4 {[%clk
0:04:32.6]} 17. Bc4 {[%clk 0:03:15.1]} 17... d5 {[%clk 0:04:31.5]} 18. Bb3
{[%clk 0:03:14.7]} 18... c6 {[%clk 0:04:29.9]} 19. c4 {[%clk 0:03:12.8]} 19...
Rc8 {[%clk 0:04:22.9]} 20. Qh5 {[%clk 0:03:02]} 20... Qf6 {[%clk 0:04:19.1]} 21.
c3 {[%clk 0:02:54.3]} 21... Rg8 {[%clk 0:04:12.9]} 22. cxd5 {[%clk 0:02:48.8]}
22... cxd5 {[%clk 0:04:10.5]} 23. Bxd5 {[%clk 0:02:47.5]} 23... Rxc3 {[%clk
0:04:09.7]} 24. Bxb7 {[%clk 0:02:45]} 24... Rc2 {[%clk 0:04:07.8]} 25. Qd1
{[%clk 0:02:31.7]} 25... e3 {[%clk 0:04:06.5]} 26. g4 {[%clk 0:02:18.9]} 26...
Qd6+ {[%clk 0:04:01.6]} 27. Kh1 {[%clk 0:02:14.8]} 27... Rxf2 {[%clk 0:03:56.7]}
28. Rxf2 {[%clk 0:02:10.1]} 28... exf2 {[%clk 0:03:54.8]} 29. gxf5 {[%clk
0:01:58.2]} 29... fxg1=Q+ {[%clk 0:03:52.5]} 30. Qxg1 {[%clk 0:01:57.3]} 30...
Nf4 {[%clk 0:03:46.3]} 31. Qe3 {[%clk 0:01:36]} 31... f6 {[%clk 0:03:20.7]} 32.
Rg1 {[%clk 0:01:27.6]} 32... Rxg1+ {[%clk 0:03:06.6]} 33. Kxg1 {[%clk
0:01:27.5]} 33... Qc7 {[%clk 0:02:59.1]} 34. d5 {[%clk 0:00:57.2]} 34... h5
{[%clk 0:02:27.2]} 35. Bc6 {[%clk 0:00:48.5]} 35... Qg7+ {[%clk 0:02:17]} 36.
Kf1 {[%clk 0:00:42.4]} 36... Qg2+ {[%clk 0:02:14.9]} 37. Ke1 {[%clk 0:00:41.9]}
37... Qh1+ {[%clk 0:02:09.5]} 38. Kd2 {[%clk 0:00:39.5]} 38... Qg2+ {[%clk
0:02:01.7]} 39. Kc3 {[%clk 0:00:34.5]} 39... Ne2+ {[%clk 0:01:10.2]} 40. Kc4
{[%clk 0:00:32]} 40... Qf1 {[%clk 0:01:01.9]} 41. Qe8+ {[%clk 0:00:29.9]} 41...
Kg7 {[%clk 0:01:01]} 42. Qg6+ {[%clk 0:00:28.7]} 42... Kh8 {[%clk 0:00:58.8]}
43. Qxf6+ {[%clk 0:00:27.8]} 43... Kh7 {[%clk 0:00:57.5]} 44. Qg6+ {[%clk
0:00:26.2]} 44... Kh8 {[%clk 0:00:57]} 45. f6 {[%clk 0:00:24]} 45... Nf4+ {[%clk
0:00:55.2]} 46. Kc5 {[%clk 0:00:19.8]} 46... Nxg6 {[%clk 0:00:54.5]} 47. Be8
{[%clk 0:00:17.6]} 47... Nf8 {[%clk 0:00:52.5]} 48. f7 {[%clk 0:00:16.5]} 48...
Qc1+ {[%clk 0:00:51.2]} 49. Kd6 {[%clk 0:00:15.9]} 49... Qa3+ {[%clk 0:00:50.2]}
50. Ke5 {[%clk 0:00:14.2]} 50... Kg7 {[%clk 0:00:49.7]} 51. d6 {[%clk
0:00:13.6]} 51... Qc5+ {[%clk 0:00:48.5]} 0-1

[Event "Live Chess"]
[Site "Chess.com"]
[Date "2024.06.01"]
[Round "-"]
[White "AndyJWise"]
[Black "GEMdzq"]
[Result "0-1"]
[WhiteElo "1045"]
[BlackElo "2315"]
[TimeControl "300"]
[EndTime "14:28:41 PDT"]
[Termination "GEMdzq won by resignation"]

1. d4 {[%clk 0:04:56.6]} 1... c5 {[%clk 0:04:57.2]} 2. d5 {[%clk 0:04:54.2]}
2... d6 {[%clk 0:04:55.4]} 3. c4 {[%clk 0:04:53.4]} 3... Nf6 {[%clk 0:04:55]} 4.
Nc3 {[%clk 0:04:48.8]} 4... g6 {[%clk 0:04:54.9]} 5. e4 {[%clk 0:04:47.3]} 5...
Bg7 {[%clk 0:04:54.8]} 6. Bg5 {[%clk 0:04:41.3]} 6... O-O {[%clk 0:04:54.2]} 7.
Nf3 {[%clk 0:04:39.1]} 7... h6 {[%clk 0:04:53.4]} 8. Bxf6 {[%clk 0:04:37.1]}
8... Bxf6 {[%clk 0:04:53.3]} 9. Qd2 {[%clk 0:04:33.7]} 9... Bg7 {[%clk
0:04:52.2]} 10. h3 {[%clk 0:04:26.6]} 10... a6 {[%clk 0:04:50.5]} 11. a4 {[%clk
0:04:24.2]} 11... Nd7 {[%clk 0:04:47.7]} 12. Bd3 {[%clk 0:04:20.6]} 12... Rb8
{[%clk 0:04:46.2]} 13. Ke2 {[%clk 0:04:19]} 13... Nf6 {[%clk 0:04:41.5]} 14.
Rhb1 {[%clk 0:04:14.1]} 14... e6 {[%clk 0:04:39.4]} 15. b4 {[%clk 0:04:09.9]}
15... exd5 {[%clk 0:04:37.9]} 16. exd5 {[%clk 0:04:07.9]} 16... Nh5 {[%clk
0:04:31.5]} 17. Kf1 {[%clk 0:04:02.1]} 17... Bxh3 {[%clk 0:04:10.5]} 18. gxh3
{[%clk 0:03:57.7]} 18... Qf6 {[%clk 0:04:09.1]} 19. Be4 {[%clk 0:03:42.6]} 19...
Qxc3 {[%clk 0:04:05.7]} 20. Qxc3 {[%clk 0:03:41]} 20... Bxc3 {[%clk 0:04:05.6]}
21. Ra3 {[%clk 0:03:36.9]} 21... cxb4 {[%clk 0:04:04.1]} 22. Rxc3 {[%clk
0:03:32.4]} 22... bxc3 {[%clk 0:04:02.7]} 23. Rb6 {[%clk 0:03:30.8]} 23... Rbc8
{[%clk 0:03:53.2]} 24. Rxd6 {[%clk 0:03:14.8]} 24... Rxc4 {[%clk 0:03:52.1]} 25.
Rd7 {[%clk 0:03:02.4]} 25... c2 {[%clk 0:03:50]} 26. Bxc2 {[%clk 0:03:00.7]}
26... Rxc2 {[%clk 0:03:49.9]} 27. Rxb7 {[%clk 0:02:59.6]} 27... Rd8 {[%clk
0:03:48.9]} 28. Ne5 {[%clk 0:02:53.9]} 28... Nf4 {[%clk 0:03:44.5]} 29. Rb1
{[%clk 0:02:46.4]} 29... Rxd5 {[%clk 0:03:42.8]} 0-1

[Event "Live Chess"]
[Site "Chess.com"]
[Date "2024.06.01"]
[Round "-"]
[White "chessfiction"]
[Black "MagnersCarlsberg2870"]
[Result "1-0"]
[WhiteElo "2377"]
[BlackElo "1769"]
[TimeControl "300"]
[EndTime "14:28:54 PDT"]
[Termination "chessfiction won by resignation"]

1. e4 {[%clk 0:04:52.5]} 1... d6 {[%clk 0:04:57.4]} 2. d4 {[%clk 0:04:46.2]}
2... Nf6 {[%clk 0:04:55.9]} 3. Nc3 {[%clk 0:04:43.5]} 3... g6 {[%clk 0:04:54.9]}
4. f4 {[%clk 0:04:42.5]} 4... Bg7 {[%clk 0:04:52]} 5. Nf3 {[%clk 0:04:42.4]}
5... c6 {[%clk 0:04:45.4]} 6. h3 {[%clk 0:04:39.1]} 6... b5 {[%clk 0:04:42.1]}
7. e5 {[%clk 0:04:37.6]} 7... dxe5 {[%clk 0:04:39.9]} 8. fxe5 {[%clk 0:04:37.5]}
8... Nd5 {[%clk 0:04:39]} 9. Bd3 {[%clk 0:04:27.5]} 9... Nxc3 {[%clk 0:04:33.8]}
10. bxc3 {[%clk 0:04:26]} 10... Be6 {[%clk 0:04:19.9]} 11. O-O {[%clk
0:04:22.9]} 11... O-O {[%clk 0:04:17.1]} 12. Ng5 {[%clk 0:04:21.9]} 12... Bd5
{[%clk 0:04:11.2]} 13. Qg4 {[%clk 0:04:19.6]} 13... Qd7 {[%clk 0:04:04.2]} 14.
e6 {[%clk 0:04:01.6]} 14... Bxe6 {[%clk 0:03:59.6]} 15. Nxe6 {[%clk 0:03:58.7]}
15... fxe6 {[%clk 0:03:55.1]} 16. Rxf8+ {[%clk 0:03:56.3]} 16... Kxf8 {[%clk
0:03:48]} 17. Bg5 {[%clk 0:03:50.8]} 17... e5 {[%clk 0:03:40.8]} 18. Rf1+ {[%clk
0:03:48.2]} 18... Kg8 {[%clk 0:03:37.9]} 19. Qf3 {[%clk 0:03:46.3]} 19... Qe6
{[%clk 0:03:21.2]} 20. Be4 {[%clk 0:03:38.4]} 20... h6 {[%clk 0:03:08.1]} 21. d5
{[%clk 0:03:34.4]} 21... Qd7 {[%clk 0:02:46]} 22. Qf7+ {[%clk 0:03:24.8]} 22...
Kh8 {[%clk 0:02:41.7]} 23. Qxg6 {[%clk 0:03:23.6]} 1-0

[Event "Live Chess"]
[Site "Chess.com"]
[Date "2024.06.01"]
[Round "-"]
[White "hapehansen"]
[Black "Queensandpawns"]
[Result "1-0"]
[WhiteElo "2254"]
[BlackElo "2364"]
[TimeControl "300"]
[EndTime "14:29:03 PDT"]
[Termination "hapehansen won by resignation"]

1. Nf3 {[%clk 0:04:54.9]} 1... e5 {[%clk 0:04:59.9]} 2. Nxe5 {[%clk 0:04:52.7]}
2... Nc6 {[%clk 0:04:59.8]} 3. Nf3 {[%clk 0:04:50.6]} 3... d5 {[%clk 0:04:58.5]}
4. d4 {[%clk 0:04:47.3]} 4... Nf6 {[%clk 0:04:57.2]} 5. Bg5 {[%clk 0:04:43.3]}
5... Be7 {[%clk 0:04:56.2]} 6. e3 {[%clk 0:04:41]} 6... Ne4 {[%clk 0:04:55.5]}
7. Bxe7 {[%clk 0:04:38.4]} 7... Qxe7 {[%clk 0:04:55.4]} 8. Nbd2 {[%clk
0:04:36.9]} 8... Qb4 {[%clk 0:04:53.7]} 9. Rb1 {[%clk 0:04:29.8]} 9... O-O
{[%clk 0:04:52.8]} 10. c3 {[%clk 0:04:24.7]} 10... Qe7 {[%clk 0:04:52.3]} 11.
Bb5 {[%clk 0:04:18.9]} 11... f5 {[%clk 0:04:49.2]} 12. Qb3 {[%clk 0:04:03]}
12... Be6 {[%clk 0:04:46.6]} 13. Be2 {[%clk 0:03:48.9]} 13... Rf6 {[%clk
0:04:44.1]} 14. Qxb7 {[%clk 0:03:33.4]} 14... Qe8 {[%clk 0:04:43.3]} 15. Bb5
{[%clk 0:03:24.5]} 15... Bd7 {[%clk 0:04:35.7]} 16. Ne5 {[%clk 0:03:16.2]} 16...
Nxe5 {[%clk 0:04:30.6]} 17. dxe5 {[%clk 0:03:13.2]} 17... Rb6 {[%clk 0:04:12.1]}
18. Qxd5+ {[%clk 0:03:04.5]} 18... Be6 {[%clk 0:04:11.6]} 19. Bxe8 {[%clk
0:02:43.1]} 19... Bxd5 {[%clk 0:04:10.6]} 20. Ba4 {[%clk 0:02:36.1]} 20... Bxa2
{[%clk 0:04:04.4]} 21. Ra1 {[%clk 0:02:29.1]} 21... Rxb2 {[%clk 0:03:57.4]} 22.
Rxa2 {[%clk 0:02:27.3]} 22... Rxa2 {[%clk 0:03:37.9]} 23. Bb3+ {[%clk
0:02:24.8]} 23... Kf8 {[%clk 0:03:37.8]} 24. Bxa2 {[%clk 0:02:22.3]} 24... Nxc3
{[%clk 0:03:37.7]} 25. Bc4 {[%clk 0:02:17.3]} 25... a5 {[%clk 0:03:34]} 26. O-O
{[%clk 0:02:14.6]} 26... a4 {[%clk 0:03:33.9]} 27. Ra1 {[%clk 0:02:11.6]} 27...
a3 {[%clk 0:03:32.4]} 28. Kf1 {[%clk 0:02:06.5]} 28... Ke7 {[%clk 0:03:31.7]}
29. Nb1 {[%clk 0:01:55.6]} 29... Kd7 {[%clk 0:03:31.6]} 30. Nxc3 {[%clk
0:01:53.7]} 1-0

[Event "Live Chess"]
[Site "Chess.com"]
[Date "2024.06.01"]
[Round "-"]
[White "agamilewska"]
[Black "ProfPoisson"]
[Result "1-0"]
[WhiteElo "1765"]
[BlackElo "1286"]
[TimeControl "300"]
[EndTime "14:29:09 PDT"]
[Termination "agamilewska won on time"]

1. d4 {[%clk 0:04:57.8]} 1... e6 {[%clk 0:04:58]} 2. Nf3 {[%clk 0:04:57.2]} 2...
f5 {[%clk 0:04:55.6]} 3. e3 {[%clk 0:04:56.4]} 3... Nf6 {[%clk 0:04:54.1]} 4. c4
{[%clk 0:04:55.9]} 4... Bb4+ {[%clk 0:04:51.2]} 5. Nc3 {[%clk 0:04:54.9]} 5...
Bxc3+ {[%clk 0:04:49.8]} 6. bxc3 {[%clk 0:04:53.9]} 6... b6 {[%clk 0:04:48.3]}
7. Be2 {[%clk 0:04:53.2]} 7... Bb7 {[%clk 0:04:46.9]} 8. O-O {[%clk 0:04:52.7]}
8... Qe7 {[%clk 0:04:39.6]} 9. h3 {[%clk 0:04:47.5]} 9... Ne4 {[%clk 0:04:38]}
10. Qd3 {[%clk 0:04:45]} 10... d6 {[%clk 0:04:32.6]} 11. d5 {[%clk 0:04:43.1]}
11... e5 {[%clk 0:04:27.8]} 12. Ba3 {[%clk 0:04:35.5]} 12... Nd7 {[%clk
0:04:25.4]} 13. Nd2 {[%clk 0:04:27.7]} 13... Ndf6 {[%clk 0:04:17.2]} 14. Nxe4
{[%clk 0:04:26.6]} 14... Nxe4 {[%clk 0:04:14.8]} 15. f3 {[%clk 0:04:25.3]} 15...
Ng3 {[%clk 0:04:07.6]} 16. Rfe1 {[%clk 0:04:23.6]} 16... O-O-O {[%clk
0:03:57.9]} 17. Kf2 {[%clk 0:04:22.1]} 17... Qh4 {[%clk 0:03:52]} 18. Kg1 {[%clk
0:04:18.5]} 18... e4 {[%clk 0:03:44.8]} 19. fxe4 {[%clk 0:04:15]} 19... Nxe4
{[%clk 0:03:35.5]} 20. Bf3 {[%clk 0:04:10]} 20... Qf2+ {[%clk 0:03:31.7]} 21.
Kh1 {[%clk 0:04:06.2]} 21... g5 {[%clk 0:03:05.5]} 22. Bxe4 {[%clk 0:04:02.9]}
22... fxe4 {[%clk 0:03:00.3]} 23. Qxe4 {[%clk 0:04:01.7]} 23... Rde8 {[%clk
0:02:43.8]} 24. Qg4+ {[%clk 0:04:00.1]} 24... Kb8 {[%clk 0:02:37.4]} 25. e4
{[%clk 0:03:59.3]} 25... Bc8 {[%clk 0:02:33.7]} 26. Qe2 {[%clk 0:03:48.4]} 26...
Qg3 {[%clk 0:02:24.9]} 27. Rf1 {[%clk 0:03:43.1]} 27... h5 {[%clk 0:02:18.1]}
28. Rf3 {[%clk 0:03:41.8]} 28... Qe5 {[%clk 0:02:11.8]} 29. Kg1 {[%clk
0:03:18.7]} 29... Bg4 {[%clk 0:02:08.7]} 30. hxg4 {[%clk 0:03:16.5]} 30... hxg4
{[%clk 0:02:06.4]} 31. Rf5 {[%clk 0:03:09.2]} 31... Qh2+ {[%clk 0:02:03.4]} 32.
Kf2 {[%clk 0:03:08.6]} 32... g3+ {[%clk 0:01:47.6]} 33. Ke3 {[%clk 0:03:02.9]}
33... Qh6 {[%clk 0:01:34.1]} 34. Qg4 {[%clk 0:02:57.2]} 34... Qh2 {[%clk
0:01:17.9]} 35. Rxg5 {[%clk 0:02:49.1]} 35... Qxg2 {[%clk 0:01:14.6]} 36. Qxg3
{[%clk 0:02:48.2]} 36... Qc2 {[%clk 0:01:07.6]} 37. Qf3 {[%clk 0:01:50.3]} 37...
Qxc3+ {[%clk 0:01:00.3]} 38. Kf2 {[%clk 0:01:49.5]} 38... Rhf8 {[%clk
0:00:54.5]} 39. Rf5 {[%clk 0:01:45.7]} 39... Rxf5 {[%clk 0:00:35.3]} 40. exf5
{[%clk 0:01:41.6]} 40... Qxa1 {[%clk 0:00:33.2]} 41. f6 {[%clk 0:01:36.1]} 41...
Qxa2+ {[%clk 0:00:31.3]} 42. Kg3 {[%clk 0:01:31.7]} 42... Rf8 {[%clk 0:00:27.7]}
43. f7 {[%clk 0:01:29]} 43... Qxc4 {[%clk 0:00:24.5]} 44. Bb2 {[%clk 0:01:24.3]}
44... Qb4 {[%clk 0:00:15.6]} 45. Bg7 {[%clk 0:01:22.5]} 45... Rxf7 {[%clk
0:00:05.8]} 46. Qxf7 {[%clk 0:01:20.8]} 46... Qb3+ {[%clk 0:00:05.6]} 47. Kg4
{[%clk 0:01:18.7]} 47... Qc4+ {[%clk 0:00:03.9]} 48. Kg5 {[%clk 0:01:15.8]}
48... Qc1+ {[%clk 0:00:02.3]} 49. Kg6 {[%clk 0:01:14.6]} 1-0